Cogmind - Beta 13 X2 @@@ ROGUE MODE // 2024.02.10 @ 22:45:34 Player: Minty Result: Destroyed by X-62 Marksman with Gauss Rifle Performance ------------- Evolutions (4) 2000 Regions Visited (11) 2200 Robots Destroyed (125) 625 Value Destroyed (4627) 4627 Prototype IDs (18) 360 Alien Tech Used (0) 0 Bonus (948) 948 TOTAL SCORE: 10760 Bonus ------- High Alert Combat Kills 419 Follower Combat Kills 299 Met Data Miner 300 Friendly Fire -70 Cogmind --------- Core Integrity 0/850 Matter 300/300 Energy 92/100 System Corruption 0% Temperature Cool (0) Movement Walking (190) Ox1 Location -6/Factory Parts ------- > --- POWER (1) -------- (None) > --- PROPULSION (3) --- Carbon-fiber Leg Carbon-fiber Leg > --- UTILITY (5) ------ High-capacity Storage Unit Corruption Screen > --- WEAPON (6) ------- Power Sword Power Sword Power Sword > --- INVENTORY (20) --- Neutrino Core Carbon-fiber Leg Advanced Heat Sink Improved Cooling System Small Storage Unit Large Matter Pod (150) Matter Compressor (250) Core Analyzer Particle Charger Particle Charger Particle Charger Improved Propulsion Shielding Improved Datajack Peak State ------------ > --- POWER ------------ Light Angular Momentum Engine > --- PROPULSION ------- Improved Medium Treads Carbon-fiber Leg Flexi-carbon Leg > --- UTILITY ---------- Advanced Heat Sink High-capacity Storage Unit Improved Propulsion Shielding Medium Reflective Plating Corruption Screen > --- WEAPON ----------- Heavy Laser Plasma Cannon Heavy Ion Cannon Phase Cannon Gauss Rifle Flak Gun > --- INVENTORY -------- Neutrino Core Improved Cooling System Small Storage Unit Large Matter Pod Matter Compressor Core Analyzer Particle Charger Particle Charger Particle Charger Improved Propulsion Shielding Improved Utility Shielding Layered Medium Armor Plating Improved Datajack Makeshift Hammer Signal Generator [Rating: 65] Favorites ----------- Power Heavy Ion Engine Engine Heavy Ion Engine Power Core Neutrino Core Reactor Cold Fusion Reactor Propulsion Improved Medium Treads Treads Improved Medium Treads Leg Carbon-fiber Leg Wheel Armored Wheel Flight Unit Flight Unit Utility High-capacity Storage Unit Device Advanced Heat Sink Storage High-capacity Storage Unit Processor Corruption Screen Hackware System Shield Protection Medium Reflective Plating Weapon Shock Rifle Energy Gun Shock Rifle Energy Cannon Heavy Ion Cannon Ballistic Gun Light Assault Rifle Ballistic Cannon Mini Assault Cannon Launcher Heavy Rocket Launcher Impact Weapon Makeshift Hammer Slashing Weapon Greatsword Piercing Weapon Makeshift Spear Special Melee Weapon Improved Datajack Build | -11 -10 -10 -10 -9 -8 -7 -7 -7 -7 -6 -6 ------- Run | Yrd Mat Min Exi Min Mat Fac Low Low Dat Pro Fac Slots Evolved 8 | . . . . . 4 2 . . . . 2 Power . | . . . . . . . . . . . . Propulsion 1 | . . . . . 1 . . . . . . Utility 3 | . . . . . 1 . . . . . 2 Weapon 4 | . . . . . 2 2 . . . . . Parts Attached 136 | . 1 8 . 6 33 12 19 1 5 10 41 Power 16 | . . 2 . 1 5 1 . . . 1 6 Engine 13 | . . 2 . 1 5 1 . . . 1 3 Core 1 | . . . . . . . . . . . 1 Reactor 2 | . . . . . . . . . . . 2 Propulsion 32 | . . 2 . 2 9 2 6 . . . 11 Treads 15 | . . . . . 7 2 6 . . . . Leg 14 | . . . . 2 1 . . . . . 11 Wheel 1 | . . . . . 1 . . . . . . Hover . | . . . . . . . . . . . . Flight 2 | . . 2 . . . . . . . . . Utility 35 | . 1 3 . 1 6 4 8 . . 1 11 Device 11 | . . 1 . . 2 1 4 . . 1 2 Storage 4 | . . . . 1 2 1 . . . . . Processor 3 | . . . . . . . . . . . 3 Hackware 1 | . . . . . . 1 . . . . . Protection 16 | . 1 2 . . 2 1 4 . . . 6 Artifact . | . . . . . . . . . . . . Weapon 53 | . . 1 . 2 13 5 5 1 5 8 13 Energy Gun 20 | . . . . 1 7 4 2 . 3 1 2 Energy Cannon 5 | . . . . . . . 2 . 1 . 2 Ballistic Gun 7 | . . 1 . . 3 . . . . 1 2 Ballistic Cannon 2 | . . . . 1 . 1 . . . . . Launcher 6 | . . . . . 3 . . 1 1 1 . Special Weapon . | . . . . . . . . . . . . Impact Weapon 2 | . . . . . . . 1 . . . 1 Slashing Weapon 8 | . . . . . . . . . . 3 5 Piercing Weapon 1 | . . . . . . . . . . 1 . Special Melee Weapon 2 | . . . . . . . . . . 1 1 Unidentified Prototypes 5 | . . . . . 2 2 . . . . 1 Corrupted Parts 6 | . . . . . 1 . 4 . . 1 . System Corruption 21 | . . . . . 4 . 16 . . 1 . Parts Lost 43 | . . . . 2 8 . 1 . . 4 28 Power 5 | . . . . . 2 . . . . . 3 Propulsion 11 | . . . . 1 1 . . . . 1 8 Utility 7 | . . . . . 1 . . . . . 6 Weapon 20 | . . . . 1 4 . 1 . . 3 11 Highest Loss Streak 8 | . . . . 1 3 . 1 . . 3 8 To Critical Strikes 1 | . . . . . . . . . . . 1 Average Slot Usage (%) 90 | . 85 93 100 94 89 99 96 97 56 93 73 Engine 7 | . 14 14 14 14 8 7 7 7 7 7 3 Treads 17 | . . . . . 23 23 23 23 23 22 4 Leg 3 | . 28 8 . 24 1 . . . . . 10 Flight 1 | . . 20 28 2 . . . . . . . Device 3 | . . 1 14 2 5 7 2 . . 2 5 Storage 7 | . 14 4 . 11 9 7 7 7 7 7 6 Processor 1 | . . . . . . . . . . . 7 Protection 10 | . . 16 14 11 9 6 11 15 15 11 6 Energy Gun 16 | . . . . 2 12 37 26 23 2 16 1 Energy Cannon 4 | . . . . . . . 4 7 . 7 8 Ballistic Gun 4 | . 28 28 28 21 5 1 . . . 1 4 Ballistic Cannon 2 | . . . . 2 3 5 7 4 . . . Launcher 2 | . . . . . 7 . . 2 . 6 1 Impact Weapon 1 | . . . . . . . 4 4 . . 1 Slashing Weapon 2 | . . . . . . . . . . 6 6 Naked Turns . | . . . . . . . . . . . . Heaviest Build 95 | 11 12 12 7 20 65 76 89 93 89 95 92 Greatest Support 90 | 20 20 20 8 20 69 69 90 90 90 90 60 Greatest Overweight (x) 4 | . . 2 . 1 4 1 1 1 . 1 4 Average Overweight (x) . | . . . . . . . . . . . 1 Largest Inventory Capacity 20 | . 8 8 5 8 20 20 20 20 20 20 20 Average Capacity 18 | . 8 5 5 7 19 20 20 20 20 20 20 Most Carried 20 | . 8 8 5 8 20 20 20 20 20 20 20 Average Carried 17 | . 6 5 5 7 14 19 19 19 20 19 15 Final Capacity 20 | 8 8 5 5 8 20 20 20 20 20 20 20 Final Carried 20 | 6 8 5 5 8 20 20 20 20 20 18 13 Class Distribution -------------------- 30% | Scavenger-Executioner 18% | Executioner 16% | Scavenger-Tank 13% | Scavenger-Mutant 10% | Tank 8% | Mutant Dominant Class ---------------- Mutant | -10/Materials Scavenger-Mutant | -10/Mines Scavenger-Mutant | -10/Exiles Scavenger-Mutant | -9/Mines Tank | -8/Materials Executioner | -7/Factory Scavenger-Executioner | -7/Lower Caves Scavenger-Executioner | -7/Lower Caves Scavenger-Mutant | -7/Data Miner Scavenger-Tank | -6/Proximity Caves Scavenger-Mutant | -6/Factory Resources | -11 -10 -10 -10 -9 -8 -7 -7 -7 -7 -6 -6 ----------- Run | Yrd Mat Min Exi Min Mat Fac Low Low Dat Pro Fac Matter Collected 3244 | 200 . 162 . 58 700 209 258 164 . 628 865 Remotely . | . . . . . . . . . . . . Salvage Created 4963 | . . 278 . 30 1079 586 160 221 . 932 1677 Parts 211 | . . 25 . 3 65 32 9 11 . 25 41 Haulers Intercepted 3 | . . . . . 1 2 . . . . . Recyclers Shooed 2 | . . . . 1 . . . . . . 1 Parts Field Recycled . | . . . . . . . . . . . . Retrieved Matter . | . . . . . . . . . . . . Parts Self-Destructed 28 | . . . . . . . 4 6 . 18 . Prevented 10 | . . . . . . . 5 1 . 4 . Kills | -11 -10 -10 -10 -9 -8 -7 -7 -7 -7 -6 -6 ------- Run | Yrd Mat Min Exi Min Mat Fac Low Low Dat Pro Fac Combat Hostiles Destroyed 97 | . . 10 . 1 21 10 4 6 . 19 26 Melee 10 | . . . . . 1 . . . . 1 8 Guns 33 | . . 10 . 1 10 2 . 2 . 2 6 Cannons 19 | . . . . . 4 2 2 1 . 5 5 AOE 33 | . . . . . 6 6 2 3 . 11 5 Classes Destroyed 17 | . . 3 . 1 6 2 1 1 . 3 . Worker 10 | . . . . . 4 4 . . . . 2 Builder 4 | . . . . . 2 1 . . . . 1 Tunneler 2 | . . 1 . . . 1 . . . . . Hauler 3 | . . . . . 1 2 . . . . . Recycler 4 | . . 1 . . 1 . . . . . 2 Minesweeper 1 | . . . . . . . . 1 . . . Mechanic 1 | . . . . . . . . . . 1 . Operator 1 | . . . . . 1 . . . . . . Watcher 2 | . . . . . . 1 . . . . 1 Swarmer 20 | . . 10 . . . 3 3 2 . 2 . Grunt 51 | . . . . 1 14 5 . 4 . 8 19 Brawler 6 | . . . . . 1 . . . . 4 1 Duelist 2 | . . . . . . . . . . 2 . Sentry 8 | . . . . . 6 1 . . . 1 . Hunter 5 | . . . . . . . . . . 1 4 Programmer 4 | . . . . . . 1 . . . 1 2 Behemoth 1 | . . . . . . . 1 . . . . Decomposer 1 | . . . . . . . . 1 . . . Best Kill Streak 18 | . . 4 . 1 8 6 2 3 . 18 8 Combat Bots Only 17 | . . 3 . 1 7 3 2 3 . 17 6 Max Kills in Single Turn 6 | . . 2 . 1 3 6 1 1 . 4 3 Gunslinging 1 | . . 1 . . . . . . . . . Exploded 3 | . . . . . 3 3 1 1 . 3 3 Melee 1 | . . . . . 1 . . . . 1 1 Uniques/NPCs Destroyed . | . . . . . . . . . . . . Combat | -11 -10 -10 -10 -9 -8 -7 -7 -7 -7 -6 -6 -------- Run | Yrd Mat Min Exi Min Mat Fac Low Low Dat Pro Fac Hostile Shots Fired 589 | . . 44 . 20 103 20 41 20 . 58 283 Missed 163 | . . 17 . 7 23 8 14 9 . 12 73 Damage Taken 7286 | . . 223 . 176 1670 139 581 164 . 930 3403 Core 1335 | . . 80 . 11 214 28 60 30 . 55 857 Absorbed by Shields . | . . . . . . . . . . . . Redirected to Shielding 243 | . . 11 . 22 32 . . . . . 178 Ignored by Resistances 101 | . . . . . . 4 25 6 . . 66 Core Remaining (%) 74 | 100 . . . 63 61 . . . . 75 . Volleys Fired 181 | . . 26 . 8 38 16 12 10 . 24 47 Largest 6 | . . 2 . 2 4 6 6 5 . 4 6 Hottest 355 | . . 40 . 40 200 308 308 273 . 230 355 Shots Fired 571 | . . 52 . 13 100 96 63 34 . 74 139 Gun 371 | . . 52 . 13 56 84 43 18 . 38 67 Cannon 148 | . . . . . 19 12 20 10 . 22 65 Launcher 52 | . . . . . 25 . . 6 . 14 7 Special . | . . . . . . . . . . . . Kinetic 198 | . . 52 . 13 44 16 14 5 . 14 40 Thermal 169 | . . . . . 18 20 12 5 . 22 92 Explosive 52 | . . . . . 25 . . 6 . 14 7 Electromagnetic 152 | . . . . . 13 60 37 18 . 24 . Robot Hit Streak 18 | . . 7 . 9 10 11 16 3 . 11 18 Robot Miss Streak 6 | . . 6 . 1 5 4 5 6 . 5 4 Penetration Max 1 | . . . . . 1 . . . . . 1 Secondary Targets 4 | . . 4 . . . . . . . . . Max Gunslinging Chain 1 | . . 1 . . . . . . . . . Shots Hit Robots 354 | . . 25 . 11 56 42 38 14 . 52 116 Core Hits 233 | . . 16 . 5 55 22 12 11 . 47 65 Critical Kills 8 | . . 1 . . 5 . . . . . 2 Critical Parts Destroyed 4 | . . . . . 2 . . 1 . . 1 Critical Strikes 17 | . . 1 . . 9 . . 1 . . 6 Burn 2 | . . . . . 1 . . . . . 1 Meltdown 2 | . . . . . . . . . . . 2 Destroy 8 | . . 1 . . 7 . . . . . . Corrupt 1 | . . . . . 1 . . . . . . Smash 2 | . . . . . . . . 1 . . 1 Sever 2 | . . . . . . . . . . . 2 Melee Attacks 66 | . . . . . . . . 3 . 9 54 Impact 23 | . . . . . . . . 3 . . 20 Slashing 41 | . . . . . . . . . . 7 34 Piercing . | . . . . . . . . . . . . Sneak Attacks 8 | . . . . . . . . 2 . 2 4 Combat Hostiles . | . . . . . . . . . . . . Follow-up Attacks . | . . . . . . . . . . . . Damage Inflicted 12911 | . . 246 . 99 2117 1649 815 833 . 2845 4307 Guns 3368 | . . 246 . 97 613 590 421 94 . 398 909 Cannons 2257 | . . . . . 294 145 245 78 . 410 1085 Explosions 5034 | . . . . . 1114 899 149 350 . 1748 774 Melee 2138 | . . . . . . . . 311 . 289 1538 Ramming 114 | . . . . 2 96 15 . . . . 1 Kinetic 1810 | . . 246 . 97 511 160 190 23 . 80 503 Thermal 3546 | . . . . . 203 1069 318 55 . 410 1491 Explosive 3871 | . . . . . 1114 . . 350 . 1711 696 Electromagnetic 1432 | . . . . . 193 405 307 94 . 355 78 Impact 1214 | . . . . . . . . 311 . . 903 Slashing 924 | . . . . . . . . . . 289 635 Piercing . | . . . . . . . . . . . . Highest Corruption 16 | . . . . . 6 . 16 11 11 12 . Average Corruption 10 | . . . . . 2 . 11 11 11 11 . Corruption Purged 5 | . . . . . . . 5 . . . . Corruption Blocked 6 | . . . . . . . . . . . 6 Effects 122 | . . . . . 6 . 24 36 7 49 . Message Errors 36 | . . . . . 3 . 5 14 1 13 . Matter Fused 22 | . . . . . . . 7 5 . 10 . Heat Flow Errors 13 | . . . . . 1 . 2 4 2 4 . Energy Discharges 14 | . . . . . 1 . 4 2 1 6 . Parts Fused 2 | . . . . . . . 1 . . 1 . Data Loss (minor) 16 | . . . . . . . 1 7 1 7 . Data Loss (major) 4 | . . . . . . . . . . 4 . Misfires 7 | . . . . . . . 3 2 . 2 . Alerts 7 | . . . . . 1 . 1 2 2 1 . Weapon Failures 1 | . . . . . . . . . . 1 . Overload Shots . | . . . . . . . . . . . . Overflow Damage 1170 | . . . . . 48 260 16 286 . 86 474 Projectiles 59 | . . . . . . . 16 . . 18 25 Explosions 376 | . . . . . 44 260 . . . 22 50 Melee 735 | . . . . . 4 . . 286 . 46 399 Knockbacks 4 | . . . . . 2 . . . . . 2 Impact 3 | . . . . . 1 . . . . . 2 Kinetic 1 | . . . . . 1 . . . . . . Secondary . | . . . . . . . . . . . . Self-Inflicted Damage 361 | . . . . . 303 . . . . 18 40 Shots 10 | . . . . . 8 . . . . 1 1 Rammed 15 | . . . . . 13 1 . . . . 1 Targets Rammed 19 | . . . . 1 16 1 . . . . 1 Kicked 2 | . . . . 1 1 . . . . . . Crushed 2 | . . . . . 2 . . . . . . Highest Temperature 646 | . . 8 . 42 280 354 460 463 239 413 646 Average Temperature 142 | . . 4 . 25 93 110 154 189 103 172 171 Received Heat Transfer 2187 | . . 15 . 84 711 39 60 18 . 237 1023 Effects 38 | . . . . . . . 1 10 . 6 21 Shutdowns 4 | . . . . . . . . 1 . 1 2 Energy Bleed 7 | . . . . . . . . 1 . 3 3 Interference 12 | . . . . . . . . 2 . 2 8 Matter Decay 1 | . . . . . . . . 1 . . . Short Circuit 3 | . . . . . . . 1 . . . 2 Damage (minor) 1 | . . . . . . . . 1 . . . Damage (major) 10 | . . . . . . . . 4 . . 6 Siege Activations . | . . . . . . . . . . . . Robots Corrupted . | . . . . . . . . . . . . Combat Hostiles . | . . . . . . . . . . . . Parts Fried 9 | . . . . . 1 1 1 1 . . 5 Impact Corruptions 19 | . . . . . 1 . . 8 . . 10 Robots Melted 2 | . . . . . . . . . . . 2 Combat Hostiles 2 | . . . . . . . . . . . 2 Parts Melted 16 | . . . . . 2 3 1 . . . 10 Heat Transferred 5067 | . . . . . 481 1083 396 74 . 555 2478 Parts Sabotaged . | . . . . . . . . . . . . Parts Stolen . | . . . . . . . . . . . . Parts Stripped . | . . . . . . . . . . . . Power Chain Reactions 8 | . . . . . . 5 2 . . 1 . Missiles Intercepted . | . . . . . . . . . . . . Alert | -11 -10 -10 -10 -9 -8 -7 -7 -7 -7 -6 -6 ------- Run | Yrd Mat Min Exi Min Mat Fac Low Low Dat Pro Fac Peak Influence 780 | . . 415 . 94 780 505 . . . . 521 Initial 286 | . . . . . 36 286 . . . . 158 Average 362 | . . 208 . 53 483 404 . . . . 353 Maximum Alert Level 3 | . . 2 . . 3 2 . . . . 2 Low Security (%) 21 | . 100 52 . 100 17 . . . . . 19 Level 1 29 | . . 17 . . 12 46 . . . . 35 Level 2 42 | . . 30 . . 41 52 . . . . 45 Level 3 6 | . . . . . 29 . . . . . . Level 4 . | . . . . . . . . . . . . Level 5 . | . . . . . . . . . . . . High Security . | . . . . . . . . . . . . Max Security . | . . . . . . . . . . . . Squads Dispatched 24 | . . 1 . . 5 4 . . . 1 13 Investigation 9 | . . . . . 1 2 . . . . 6 Extermination 3 | . . . . . . 1 . . . . 2 Reinforcement 6 | . . . . . 1 1 . . . . 4 Assault 3 | . . 1 . . . . . . . 1 1 Garrison 3 | . . . . . 3 . . . . . . Intercept . | . . . . . . . . . . . . Searches Triggered . | . . . . . . . . . . . . Construction Impeded 1 | . . . . . . . . . . . 1 Haulers Reinforced 2 | . . . . . . 1 . . . . 1 Active Scanning Responses . | . . . . . . . . . . . . Cargo Convoy Interrupts . | . . . . . . . . . . . . Stealth | -11 -10 -10 -10 -9 -8 -7 -7 -7 -7 -6 -6 --------- Run | Yrd Mat Min Exi Min Mat Fac Low Low Dat Pro Fac Distress Signals 4 | . . . . . 1 1 . . . . 2 Communications Jammed . | . . . . . . . . . . . . Distress Signals . | . . . . . . . . . . . . Times Spotted 138 | . . 21 . 5 33 7 4 5 . 22 41 Peak Tracking Total 11 | . . 6 . 3 6 2 2 2 . 8 11 Tactical Retreats 8 | . . 2 . . 1 . 1 . . . 4 Traps | -11 -10 -10 -10 -9 -8 -7 -7 -7 -7 -6 -6 ------- Run | Yrd Mat Min Exi Min Mat Fac Low Low Dat Pro Fac Traps Triggered 1 | . . . . . . . . . . . 1 Indirectly 1 | . . . . . . . . . . . 1 Trap Hack Attempts . | . . . . . . . . . . . . Triggered . | . . . . . . . . . . . . Disarmed . | . . . . . . . . . . . . Reprogrammed . | . . . . . . . . . . . . Reused . | . . . . . . . . . . . . Traps Extracted . | . . . . . . . . . . . . Installed . | . . . . . . . . . . . . Triggered 2 | . . . . . . . . 2 . . . Machines | -11 -10 -10 -10 -9 -8 -7 -7 -7 -7 -6 -6 ---------- Run | Yrd Mat Min Exi Min Mat Fac Low Low Dat Pro Fac Machines Disabled 17 | . . . . . 2 12 . . . . 3 Max in Single Turn 12 | . . . . . 1 12 . . . . 1 Machines Repaired . | . . . . . . . . . . . . Machines Dismantled . | . . . . . . . . . . . . Machines Sabotaged . | . . . . . . . . . . . . Overloaded Fab Kills . | . . . . . . . . . . . . Hacking | -11 -10 -10 -10 -9 -8 -7 -7 -7 -7 -6 -6 --------- Run | Yrd Mat Min Exi Min Mat Fac Low Low Dat Pro Fac Machines Accessed 18 | . 1 . . . 4 3 1 . 4 . 5 Terminals 8 | . . . . . 3 2 . . . . 3 Fabricators . | . . . . . . . . . . . . Repair Stations . | . . . . . . . . . . . . Recycling Units 3 | . 1 . . . . . . . . . 2 Scanalyzers 2 | . . . . . 1 1 . . . . . Garrison Access . | . . . . . . . . . . . . Total Hacks 84 | . 3 . . . 22 12 1 . 28 . 18 Successful 63 | . 2 . . . 15 8 1 . 28 . 9 Failed 21 | . 1 . . . 7 4 . . . . 9 Catastrophic 2 | . . . . . 1 . . . . . 1 Database Lockouts . | . . . . . . . . . . . . Manual 24 | . . . . . 8 5 . . . . 11 Terminals 29 | . . . . . 13 6 . . . . 10 Fabricators . | . . . . . . . . . . . . Repair Stations . | . . . . . . . . . . . . Recycling Units 11 | . 3 . . . . . . . . . 8 Scanalyzers 15 | . . . . . 9 6 . . . . . Garrison Access . | . . . . . . . . . . . . Terminal Hacks 34 | . . . . . 4 . 1 . 28 . 1 Record 11 | . . . . . . . . . 11 . . Part Schematic 10 | . . . . . . . . . 10 . . Robot Schematic 4 | . . . . . . . . . 4 . . Prototype ID Bank 4 | . . . . . 1 . . . 3 . . Open Door 1 | . . . . . . . 1 . . . . Emergency Access Points 1 | . . . . . 1 . . . . . . Alert Level 1 | . . . . . . . . . . . 1 Hauler Manifests 1 | . . . . . 1 . . . . . . Zone Layout 1 | . . . . . 1 . . . . . . Fabricator Hacks . | . . . . . . . . . . . . Repair Station Hacks . | . . . . . . . . . . . . Recycling Unit Hacks 6 | . 2 . . . . . . . . . 4 Process 1 | . . . . . . . . . . . 1 Report Inventory 3 | . 1 . . . . . . . . . 2 Retrieve Matter 1 | . . . . . . . . . . . 1 Retrieve Components 1 | . 1 . . . . . . . . . . Scanalyzer 14 | . . . . . 8 6 . . . . . Insert Component 7 | . . . . . 4 3 . . . . . Analyze 7 | . . . . . 4 3 . . . . . Garrison Access Hacks . | . . . . . . . . . . . . Unauthorized Hacks 9 | . . . . . 3 2 . . . . 4 Terminals 7 | . . . . . 2 2 . . . . 3 Botnet 7 | . . . . . 2 2 . . . . 3 Fabricators . | . . . . . . . . . . . . Repair Stations . | . . . . . . . . . . . . Recycling Units 1 | . . . . . . . . . . . 1 Tunnel 1 | . . . . . . . . . . . 1 Scanalyzers 1 | . . . . . 1 . . . . . . Extract 1 | . . . . . 1 . . . . . . Garrison Access . | . . . . . . . . . . . . Data Cores Recovered . | . . . . . . . . . . . . Used . | . . . . . . . . . . . . Hacking Detections 12 | . . . . . 4 3 . . . . 5 Full Trace Events 6 | . . . . . . 2 . . . . 4 Feedback Events . | . . . . . . . . . . . . Feedback Blocked . | . . . . . . . . . . . . Robot Schematics Acquired 4 | . . . . . . . . . 4 . . Robots Built . | . . . . . . . . . . . . Authchips . | . . . . . . . . . . . . Time . | . . . . . . . . . . . . Total Robot Build Rating . | . . . . . . . . . . . . Part Schematics Acquired 18 | . . . . . 5 3 . . 10 . . Parts Built . | . . . . . . . . . . . . Authchips . | . . . . . . . . . . . . Time . | . . . . . . . . . . . . Total Part Build Rating . | . . . . . . . . . . . . Parts Repaired . | . . . . . . . . . . . . Time . | . . . . . . . . . . . . Parts Recycled . | . . . . . . . . . . . . Recycled Matter 10 | . . . . . . . . . . . 10 Retrieved Matter 10 | . . . . . . . . . . . 10 Retrieved Components 1 | . 1 . . . . . . . . . . Parts Scanalyzed 7 | . . . . . 4 3 . . . . . Part Schematics Acquired 7 | . . . . . 4 3 . . . . . Parts Damaged 2 | . . . . . 1 1 . . . . . Bothacking | -11 -10 -10 -10 -9 -8 -7 -7 -7 -7 -6 -6 ------------ Run | Yrd Mat Min Exi Min Mat Fac Low Low Dat Pro Fac Used RIF Installer . | . . . . . . . . . . . . Robots Hacked . | . . . . . . . . . . . . Non-combat . | . . . . . . . . . . . . Combat . | . . . . . . . . . . . . Robot Hacks Applied . | . . . . . . . . . . . . Relay Couplers Released . | . . . . . . . . . . . . Fabnet Peak Effective % . | . . . . . . . . . . . . Robots Rewired 2 | . . . . . . . . . . 2 . Allies Hacked . | . . . . . . . . . . . . Hacks Repelled . | . . . . . . . . . . . . Allies | -11 -10 -10 -10 -9 -8 -7 -7 -7 -7 -6 -6 -------- Run | Yrd Mat Min Exi Min Mat Fac Low Low Dat Pro Fac Total Allies 6 | . . 4 . . . . . . . 2 . Largest Group 3 | . . 3 3 3 3 . . . . 2 2 Highest-Rated Group 49 | . . 40 40 40 40 . . . . 49 49 Highest-Rated Ally 31 | . . 31 16 16 16 . . . . 29 29 Total Orders . | . . . . . . . . . . . . Ally Attacks 66 | . . 16 . 11 39 . . . . . . Total Damage 776 | . . 231 . 138 407 . . . . . . Kills 14 | . . 6 . 3 5 . . . . . . Allies Corrupted . | . . . . . . . . . . . . Allies Melted . | . . . . . . . . . . . . Intel | -11 -10 -10 -10 -9 -8 -7 -7 -7 -7 -6 -6 ------- Run | Yrd Mat Min Exi Min Mat Fac Low Low Dat Pro Fac Robot Analysis Total . | . . . . . . . . . . . . Derelict Logs Recovered 4 | . . 2 . . . . 1 1 . . . Drone Launches . | . . . . . . . . . . . . Drone Recoveries . | . . . . . . . . . . . . Exploration | -11 -10 -10 -10 -9 -8 -7 -7 -7 -7 -6 -6 ------------- Run | Yrd Mat Min Exi Min Mat Fac Low Low Dat Pro Fac Turns Passed 6684 | . 52 353 34 199 821 1092 716 839 156 1297 1125 Spaces Moved 3485 | 1 41 503 59 151 378 498 359 474 92 575 354 Core . | . . . . . . . . . . . . Treads 2435 | . . . . . 310 498 359 474 92 575 127 Legs 485 | 1 41 66 . 125 25 . . . . . 227 Wheels 43 | . . . . . 43 . . . . . . Hover . | . . . . . . . . . . . . Flight 522 | . . 437 59 26 . . . . . . . Fastest Speed 37 | 120 120 37 37 37 120 160 160 160 160 160 120 Average Speed 159 | 120 120 48 37 109 158 198 173 162 160 204 220 Slowest Speed 400 | 120 120 200 37 120 232 240 240 240 160 240 400 Overloaded Moves . | . . . . . . . . . . . . Propulsion Burnouts . | . . . . . . . . . . . . Robots Hopped 5 | . . 5 . . . . . . . . . Cave-ins Triggered . | . . . . . . . . . . . . Exploration Rate (%) 41 | 2 14 94 10 40 40 16 53 69 68 79 8 Regions Visited 11 Branch Regions 7 Pre-discovered Areas 3 | . . 1 . . . . . . 1 . 1 Known Exits Taken . | . . . . . . . . . . . . Unknown Exits Taken 11 | 1 1 1 1 1 1 1 1 1 1 1 . Scrap Searched 10 | . . 1 . 2 . . 2 1 . 4 . Spaces Dug 3 | . . . . . . . . . . 2 1 Terrain Destroyed 412 | . . . . . 162 28 14 52 . 118 38 Melee 3 | . . . . . . . . . . 2 1 Projectile 24 | . . . . . 8 1 6 6 . 1 2 AOE 385 | . . . . . 154 27 8 46 . 115 35 Terrain Rammed . | . . . . . . . . . . . . Walls Destroyed . | . . . . . . . . . . . . Machines Disabled . | . . . . . . . . . . . . Actions | -11 -10 -10 -10 -9 -8 -7 -7 -7 -7 -6 -6 --------- Run | Yrd Mat Min Exi Min Mat Fac Low Low Dat Pro Fac Total 4146 | . 45 565 70 174 511 570 424 519 101 636 531 Wait 106 | . . 18 12 . 1 . 13 29 . 3 30 Move 3464 | . 40 492 58 150 377 497 358 473 91 574 354 Hop 5 | . . 5 . . . . . . . . . Pick Up 70 | . 3 2 . 4 24 20 7 1 . 5 4 Fast Attach 60 | . 1 5 . 4 12 4 3 . 5 7 19 Attach 32 | . . . . . 8 2 4 . . 2 16 Detach 20 | . . 2 . . 7 1 . . . 1 9 Swap 44 | . . 3 . 2 13 6 12 1 . 1 6 Drop 92 | . 1 12 . 5 15 23 15 2 5 10 4 Fire 181 | . . 26 . 8 38 16 12 10 . 24 47 Melee 53 | . . . . . . . . 3 . 9 41 Ram . | . . . . . . . . . . . . Kick 2 | . . . . 1 1 . . . . . . Crush 17 | . . . . . 15 1 . . . . 1 Escape Stasis . | . . . . . . . . . . . . Rewire . | . . . . . . . . . . . . Trap . | . . . . . . . . . . . . Miscellaneous . | . . . . . . . . . . . . Route ------- -11/Scrapyard -10/Materials -10/Mines (discovered 3 exits: [*Mat x2] / [*Exi]) -10/Exiles -9/Mines -8/Materials (discovered 2 exits: *Fac / [*Sto]) -7/Factory -7/Lower Caves -7/Lower Caves (discovered 2 exits: *Fac / *Dat) -7/Data Miner -6/Proximity Caves -6/Factory History --------- Turn | Location | Event 1 | -11/Scrapyard | Discovered new exit (range 0) 1 | -11/Scrapyard | Entered Materials 38 | -10/Materials | Discovered new exit (range 8) 53 | -10/Materials | Entered Mines 113 | -10/Mines | Met a Derelict bent on vengeance 175 | -10/Mines | Learned Materials stockpile data 193 | -10/Mines | Discovered new exit (range 6) 229 | -10/Mines | Met a Derelict testing a Signal Generator 233 | -10/Mines | Found Signal Generator 301 | -10/Mines | Discovered new exit (range 3) 340 | -10/Mines | Learned location of Mines (-9) 380 | -10/Mines | Assisted by bots powering up and referring to "LRC-V3" 386 | -10/Mines | Deemed a non-threat by the Exiles lab entrance 386 | -10/Mines | Discovered new exit (range 5) 406 | -10/Mines | Entered Exiles 406 | -10/Exiles | Found Exiles lab abandoned 406 | -10/Exiles | Accompanied by 3 allies 424 | -10/Exiles | Discovered new exit (range 14) 440 | -10/Exiles | Entered Mines 440 | -9/Mines | Accompanied by 3 allies 524 | -9/Mines | Build established: Scavenger-Mutant 601 | -9/Mines | A weapon hastily lodged in a ceiling crevice suddenly fell to the ground 629 | -9/Mines | Discovered new exit (range 4) 639 | -9/Mines | Entered Materials 639 | -8/Materials | Accompanied by 3 allies 639 | -8/Materials | Evolved 4 slots: Propulsion x1, Utility x1, Weapon x2 820 | -8/Materials | Garrison activated, responded to threat 834 | -8/Materials | Lost 3 allies 995 | -8/Materials | Destroyed 7 combat bots 1000 | -8/Materials | Lost 3 parts (1p1u1w) 1120 | -8/Materials | Build established: Tank 1430 | -8/Materials | Discovered new exit (range 12) 1430 | -8/Materials | Discovered new exit (range 4) 1460 | -8/Materials | Entered Factory 1460 | -7/Factory | Evolved 2 slots: Weapon x2 1783 | -7/Factory | Build established: Executioner 2507 | -7/Factory | Discovered new exit (range 11) 2552 | -7/Factory | Entered Lower Caves 2557 | -7/Lower Caves | Learned Factory terminal intel 2632 | -7/Lower Caves | Spotted B-75 Beast 2665 | -7/Lower Caves | Destroyed B-75 Beast 2688 | -7/Lower Caves | System corruption reached 10% 2914 | -7/Lower Caves | Encountered a Warlord checkpoint 3129 | -7/Lower Caves | Build established: Scavenger-Executioner 3250 | -7/Lower Caves | Discovered new exit (range 12) 3268 | -7/Lower Caves | Entered another Lower Caves area 3401 | -7/Lower Caves | Learned Factory terminal intel 3614 | -7/Lower Caves | Discovered new exit (range 14) 4089 | -7/Lower Caves | Discovered new exit (range 11) 4107 | -7/Lower Caves | Entered Data Miner 4110 | -7/Data Miner | Discovered new exit (range 6) 4140 | -7/Data Miner | Met Data Miner 4172 | -7/Data Miner | Learned location of Section 7 (-2) 4172 | -7/Data Miner | Acquired the access code to Warlord's prototype stash 4193 | -7/Data Miner | Received God Mode back door access code from Data Miner 4263 | -7/Data Miner | Entered Proximity Caves 5095 | -6/Proximity Caves | Build established: Scavenger-Tank 5415 | -6/Proximity Caves | Attracted the attention of an 0b10 outpost 5484 | -6/Proximity Caves | Destroyed 17 combat bots 5489 | -6/Proximity Caves | Lost 3 parts (1n2w) 5548 | -6/Proximity Caves | Discovered new exit (range 5) 5560 | -6/Proximity Caves | Entered Factory 5560 | -6/Factory | Accompanied by 2 allies 5560 | -6/Factory | Evolved 2 slots: Utility x2 5561 | -6/Factory | Loaded intel: 26 terminal locations 5802 | -6/Factory | Lost 3 parts (1p1n1w) 6025 | -6/Factory | Lost 4 parts (2u2w) 6166 | -6/Factory | Lost 4 parts (1n1u2w) 6355 | -6/Factory | Lost 3 parts (1u2w) 6453 | -6/Factory | Core integrity fell below 50% 6485 | -6/Factory | Lost 3 parts (2n1u) 6513 | -6/Factory | Build established: Scavenger-Mutant 6590 | -6/Factory | Core integrity fell below 20% 6598 | -6/Factory | Lost 8 parts (1p4n1u2w) 6610 | -6/Factory | First assault squad dispatched 6685 | -6/Factory | Destroyed by X-62 Marksman with Gauss Rifle Last Messages --------------- 06631_ U-05 Engineer lays Concrete. 06632_ K-01 Serf collects debris. 06633_ U-05 Engineer lays Concrete. 06634_ K-01 Serf collects debris. 06635_ U-05 Engineer lays Concrete. 06638_ Dropped Signal Generator. 06639_ U-05 Engineer lays Concrete. 06648_ Signal Generator broadcasts a burst of procedurally generated transmissions. 06648_ ALERT: Intercepting significant anomalous signal. Redirecting assault force. 06648_ U-05 Engineer lays Concrete. 06654_ Signal Generator broadcasts a burst of procedurally generated transmissions. 06654_ ALERT: Intercepting significant anomalous signal. Redirecting assault force. 06654_ Signal Generator's internal power supply exhausted. 06658_ ALERT: Suspicious intruders detected, dispatching Specialist reinforcements to area. 06682_ Penetrated by Slug. Map ----- +----------------------------------------------------+ | #? ???????????????????????????????????????????? | | #? ??????????????????????????????????????????? | | # ??????????????????????????????????????????? | | # ??????????????????????????????????????????? | | = # ???????????????????????????????????????????? | | #* ???????????????????????????????????????????? | | #????????????????????????????????????????????? | | #????????????????????????????????????????????? | | "#############????????????????????????????????? | | #????????????????????????????????? | | #????????????????????????????????? | | #????????????????????????????????? | | [[!#????????????????????????????????? | | ! [!=#?#############??????????????????? | | " & [!=## #??????????????????? | | " ## #??????????????????? | | # ## """ #??????????????????? | | + ] ## """ #??????????????????? | | #### ## """ !! #??????????????????? | | ???# ## !! #??????????????????? | | ???# ## """ #??????????????????? | | #??#######+####### """ #??????????????????? | | #??????# H + """ #??????????????????? | | #??????# ##### #??????????????????? | | #??????# #???# #??????????????????? | | ######## #???# @] #??????????????????? | | +% %% #???#######x######??????????????????? | | # %% % ##??????? ????????????????????????? | | #"" """" ####### ????????????????????????? | | #"T %""" ????????????????????????? | | #""" " "" ?????????????????????????? | | # """ ?????????????????????????? | | / "" ?????????????????????????? | | # "" ??????????????????????? | | # ######### ?????????????????????? | | # ! #???????# ?????????????????????? | | #???????### #?????????????????????? | | %% #### #?????????# ^#?????????????????????? | | !!! ##?# #?????????# #?????????????????????? | | ! ! ##?# #?????????# #?????????????????????? | | !! ####/######????# #?????????????????????? | | % # #????# #?????????????????????? | | # #??### ###???????????????????? | | # #??# #??????? ?????????? | | # """ """ #??# #######%" ?????????? | | # """"""" #??# ] ????????? | | %/ """"""" #### " % ????????? | | %# """"""" + T % [ ???????? | | # #### ???????? | | ###########??# ???????? | +----------------------------------------------------+ Best States ------------- Heat Dissipation 61 Coolant Potential 65 Energy Generation 19 Energy Capacity 315 Matter Stores 300 Matter Capacity 300 Sight Range 16 Terrain Scan Density 10 Corruption Block 8 Armor Coverage 450 Resistance: TH 15 Resistance: EM 15 Propulsion Shielding 66 Utility Shielding 66 Weapon Shielding 33 Phase Shifting 5 Evasion (%) 62 Melee Accuracy 8 Recoil Reduction 3 Defensive Hacking 10 Item Schematics ----------------- Adv. Treads | -8/Materials | Scanalyzed Imp. Treads | -8/Materials | Scanalyzed Mni. Grenade Launcher | -8/Materials | Scanalyzed Adv. Heat Sink | -8/Materials | Scanalyzed Arm. Wheel | -8/Materials | Extracted Utility Shielding | -7/Factory | Scanalyzed Hvy. Ion Engine | -7/Factory | Scanalyzed Mni. Assault Cannon | -7/Factory | Scanalyzed Combat Drone Bay | -7/Data Miner | Free Lgt. Regenerative Plating | -7/Data Miner | Free Cld. Cesium-ion Thruster | -7/Data Miner | Free Cld. Plasma Cannon | -7/Data Miner | Free Exp. Weapon Shielding | -7/Data Miner | Free Nuclear Pulse Array | -7/Data Miner | Free Adv. Field Recycling Unit | -7/Data Miner | Free Antimatter Reactor | -7/Data Miner | Free KE Penetrator | -7/Data Miner | Free Thermal Shield | -7/Data Miner | Free Robot Schematics ------------------ B-48 Gladiator | -7/Data Miner | Free H-55 Commando | -7/Data Miner | Free G-47 Trooper | -7/Data Miner | Free A-15 Conveyor | -7/Data Miner | Free Fabricated ------------ Nothing Alien Tech Used ----------------- None Achievements -------------- None Challenges ------------ None Game ------ Seed ArmoredPiercingCoupler Manual? 0 Play Time 00:40:21 Cumulative 649.0 hours Start 2024.02.10 @ 22:13:03 End 2024.02.10 @ 22:45:34 Sessions 1 Manual Loads 0 Difficulty Rogue Special Mode None Game No. 641 Rogue 368 Adventurer 123 Explorer 150 Win Type - Total 25 Types 19/0/4/1/0/0/0/1/0 Lore% 80 Gallery% 91 Achievement% 76 Wizard Run 0 Options --------- ASCII 0 Keyboard 1 Movement Numpad Keybinds 0 Fullscreen 2 Font 18/X11Bold Map View 76x50 Zoom Use 0% Tactical HUD 1 Map Filters NONE Filters NONE Steam 1 RUN: af5e2b1c-5ec9-4962-80ae-24864a300ef6